Cogmind - Beta 12 *** ADVENTURER MODE // 2023.03.14 @ 23:29:37 Player: Azktor Result: Destroyed by D-53 Grenadier with Mini Grenade Launcher Performance ------------- Evolutions (0) 0 Regions Visited (2) 400 Robots Destroyed (22) 110 Value Destroyed (512) 512 Prototype IDs (0) 0 Alien Tech Used (0) 0 Bonus (-19) -19 TOTAL SCORE: 1003 Bonus ------- Friendly Fire -19 Cogmind --------- Core Integrity 0/250 Matter 228/300 Energy 86/125 System Corruption 0% Temperature Cool (52) Movement Core (350) Ox6 Location -10/Mines Parts ------- > --- POWER (1) -------- Light Ion Engine > --- PROPULSION (2) --- (None) > --- UTILITY (2) ------ Medium Storage Unit Signal Interpreter > --- WEAPON (2) ------- Particle Gun Light Cannon > --- INVENTORY (10) --- Light Treads Improved Terrain Scanner Light Armor Plating Particle Gun Particle Gun Heavy Assault Rifle Light Cannon Mining Laser Peak State ------------ > --- POWER ------------ Light Nuclear Core > --- PROPULSION ------- Light Treads Light Treads > --- UTILITY ---------- Medium Storage Unit Signal Interpreter > --- WEAPON ----------- Particle Gun Light Cannon > --- INVENTORY -------- Light Ion Engine Light Treads Improved Terrain Scanner Seismic Detector Light Armor Plating Medium Laser Light Cannon Light Cannon Grenade Launcher Mining Laser [Rating: 11] Favorites ----------- Power Light Nuclear Core Engine Ion Engine Power Core Light Nuclear Core Propulsion Light Treads Treads Light Treads Utility Signal Interpreter Device Seismic Detector Storage Medium Storage Unit Processor Signal Interpreter Weapon Assault Rifle Energy Gun EM Pulse Gun Ballistic Gun Assault Rifle Ballistic Cannon Light Cannon Launcher Grenade Launcher Special Weapon Mining Laser Build | -11 -10 -10 ------- Run | Jun Mat Min Slots Evolved . | . . . Power . | . . . Propulsion . | . . . Utility . | . . . Weapon . | . . . Parts Attached 19 | 7 9 3 Power 3 | 1 1 1 Engine 2 | 1 . 1 Core 1 | . 1 . Reactor . | . . . Propulsion 3 | 2 1 . Treads 3 | 2 1 . Leg . | . . . Wheel . | . . . Hover . | . . . Flight . | . . . Utility 4 | 2 2 . Device 1 | 1 . . Storage 2 | 1 1 . Processor 1 | . 1 . Hackware . | . . . Protection . | . . . Artifact . | . . . Weapon 9 | 2 5 2 Energy Gun 2 | 1 1 . Energy Cannon . | . . . Ballistic Gun 3 | 1 2 . Ballistic Cannon 2 | . 1 1 Launcher 1 | . . 1 Special Weapon 1 | . 1 . Impact Weapon . | . . . Slashing Weapon . | . . . Piercing Weapon . | . . . Special Melee Weapon . | . . . Unidentified Prototypes . | . . . Parts Lost 5 | . 1 4 Power 1 | . . 1 Propulsion 2 | . . 2 Utility . | . . . Weapon 2 | . 1 1 Highest Loss Streak 4 | . 1 4 To Critical Strikes . | . . . Average Slot Usage (%) 99 | . 99 99 Engine 2 | . 3 . Core 11 | . 10 13 Treads 27 | . 27 27 Storage 14 | . 14 14 Processor 13 | . 13 14 Energy Gun 8 | . 6 14 Ballistic Gun 13 | . 17 . Ballistic Cannon 5 | . 2 13 Naked Turns . | . . . Heaviest Build 21 | 15 21 21 Greatest Support 40 | 40 40 40 Greatest Overweight (x) . | . . . Average Overweight (x) . | . . . Largest Inventory Capacity 10 | 8 10 10 Average Capacity 9 | 7 9 10 Most Carried 10 | 3 10 10 Average Carried 7 | 1 7 9 Final Capacity 10 | 8 10 10 Final Carried 10 | 3 10 8 Class Distribution -------------------- 100% | Mutant Dominant Class ---------------- Mutant | -10/Materials Mutant | -10/Mines Resources | -11 -10 -10 ----------- Run | Jun Mat Min Matter Collected 617 | 232 371 14 Remotely . | . . . Salvage Created 763 | 80 627 56 Parts 48 | 9 39 . Haulers Intercepted 1 | . 1 . Recyclers Shooed . | . . . Parts Field Recycled . | . . . Retrieved Matter . | . . . Parts Self-Destructed . | . . . Prevented . | . . . Kills | -11 -10 -10 ------- Run | Jun Mat Min Combat Hostiles Destroyed 25 | . 14 11 Guns 9 | . 9 . Cannons 3 | . 3 . AOE 13 | . 2 11 Classes Destroyed 7 | 1 5 1 Worker 1 | . 1 . Tunneler 3 | 3 . . Hauler 1 | . 1 . Watcher 3 | . 3 . Swarmer 3 | . 3 . Grunt 11 | . 11 . Assembled 11 | . . 11 Best Kill Streak 11 | 3 7 11 Combat Bots Only 11 | . 6 11 Max Kills in Single Turn 4 | 1 1 4 Gunslinging . | . . . Exploded 4 | . 1 4 Melee . | . . . Uniques/NPCs Destroyed . | . . . Combat | -11 -10 -10 -------- Run | Jun Mat Min Damage Taken 1026 | . 514 512 Core 273 | . 146 127 Absorbed by Shields . | . . . Regen/Repaired (Parts) 50 | . 50 . Core Remaining (%) 100 | 100 . . Volleys Fired 60 | 5 46 9 Largest 2 | 2 2 2 Hottest 100 | 60 100 100 Shots Fired 113 | 10 90 13 Gun 92 | 10 78 4 Cannon 14 | . 10 4 Launcher 5 | . . 5 Special 2 | . 2 . Kinetic 88 | 5 79 4 Thermal 6 | . 2 4 Explosive 5 | . . 5 Electromagnetic 14 | 5 9 . Robot Hit Streak 33 | 6 33 9 Robot Miss Streak 2 | 1 2 2 Penetration Max . | . . . Secondary Targets 1 | . 1 . Max Gunslinging Chain 1 | . 1 . Shots Hit Robots 87 | 8 70 9 Core Hits 63 | 3 30 30 Critical Kills 1 | . 1 . Critical Parts Destroyed . | . . . Critical Strikes 2 | . 2 . Destroy 1 | . 1 . Blast 1 | . 1 . Melee Attacks . | . . . Impact . | . . . Slashing . | . . . Piercing . | . . . Sneak Attacks . | . . . Combat Hostiles . | . . . Follow-up Attacks . | . . . Damage Inflicted 2224 | 115 1144 965 Guns 949 | 115 786 48 Cannons 173 | . 116 57 Explosions 1100 | . 240 860 Melee . | . . . Ramming 2 | . 2 . Kinetic 904 | 47 800 57 Thermal 288 | . 240 48 Explosive 860 | . . 860 Electromagnetic 170 | 68 102 . Impact . | . . . Slashing . | . . . Piercing . | . . . Highest Corruption . | . . . Average Corruption . | . . . Corruption Purged . | . . . Corruption Blocked . | . . . Overload Shots . | . . . Overflow Damage 91 | . 69 22 Projectiles . | . . . Explosions 91 | . 69 22 Melee . | . . . Knockbacks 1 | . 1 . Impact . | . . . Kinetic 1 | . 1 . Secondary . | . . . Self-Inflicted Damage 129 | . 113 16 Shots 3 | . 2 1 Rammed 1 | . 1 . Targets Rammed 1 | . 1 . Kicked . | . . . Crushed . | . . . Highest Temperature 60 | . 60 52 Average Temperature 24 | . 24 25 Received Heat Transfer 311 | . 282 29 Siege Activations . | . . . Robots Corrupted . | . . . Combat Hostiles . | . . . Parts Fried . | . . . Impact Corruptions . | . . . Robots Melted . | . . . Combat Hostiles . | . . . Parts Melted . | . . . Heat Transferred 261 | . 150 111 Parts Sabotaged . | . . . Parts Stolen . | . . . Parts Stripped . | . . . Power Chain Reactions 2 | . 2 . Missiles Intercepted . | . . . Alert | -11 -10 -10 ------- Run | Jun Mat Min Peak Influence 146 | 15 146 51 Initial 46 | . 8 46 Average 51 | 4 59 40 Maximum Alert Level . | . . . Low Security (%) 100 | 100 100 100 Level 1 . | . . . Level 2 . | . . . Level 3 . | . . . Level 4 . | . . . Level 5 . | . . . High Security . | . . . Max Security . | . . . Squads Dispatched 2 | . 2 . Investigation 2 | . 2 . Extermination . | . . . Reinforcement . | . . . Assault . | . . . Garrison . | . . . Intercept . | . . . Searches Triggered . | . . . Construction Impeded . | . . . Haulers Reinforced . | . . . Active Scanning Responses . | . . . Cargo Convoy Interrupts . | . . . Stealth | -11 -10 -10 --------- Run | Jun Mat Min Distress Signals 1 | . 1 . Communications Jammed . | . . . Distress Signals . | . . . Times Spotted 39 | . 21 18 Peak Tracking Total 16 | . 6 16 Tactical Retreats 4 | . 3 1 Traps | -11 -10 -10 ------- Run | Jun Mat Min Traps Triggered 2 | . 2 . Indirectly . | . . . Trap Hack Attempts . | . . . Triggered . | . . . Disarmed . | . . . Reprogrammed . | . . . Reused . | . . . Traps Extracted . | . . . Installed . | . . . Triggered . | . . . Machines | -11 -10 -10 ---------- Run | Jun Mat Min Machines Disabled 1 | . 1 . Max in Single Turn 1 | . 1 . Machines Repaired . | . . . Machines Sabotaged . | . . . Overloaded Fab Kills . | . . . Hacking | -11 -10 -10 --------- Run | Jun Mat Min Machines Accessed 7 | . 7 . Terminals 4 | . 4 . Fabricators . | . . . Repair Stations 1 | . 1 . Recycling Units 2 | . 2 . Scanalyzers . | . . . Garrison Access . | . . . Total Hacks 21 | . 21 . Successful 15 | . 15 . Failed 6 | . 6 . Catastrophic 1 | . 1 . Database Lockouts . | . . . Manual 11 | . 11 . Terminals 13 | . 13 . Fabricators . | . . . Repair Stations 4 | . 4 . Recycling Units 4 | . 4 . Scanalyzers . | . . . Garrison Access . | . . . Terminal Hacks 4 | . 4 . Part Schematic 1 | . 1 . Branch Access Points 1 | . 1 . Terminal Index 1 | . 1 . Alert Level 1 | . 1 . Fabricator Hacks . | . . . Repair Station Hacks 3 | . 3 . Scan Component 2 | . 2 . Repair 1 | . 1 . Recycling Unit Hacks 3 | . 3 . Report Inventory 2 | . 2 . Retrieve Components 1 | . 1 . Scanalyzer . | . . . Garrison Access Hacks . | . . . Unauthorized Hacks 5 | . 5 . Terminals 4 | . 4 . Botnet 4 | . 4 . Fabricators . | . . . Repair Stations . | . . . Recycling Units 1 | . 1 . Recyclers 1 | . 1 . Scanalyzers . | . . . Garrison Access . | . . . Data Cores Recovered . | . . . Used . | . . . Hacking Detections 4 | . 4 . Full Trace Events 1 | . 1 . Feedback Events . | . . . Feedback Blocked . | . . . Robot Schematics Acquired . | . . . Robots Built . | . . . Authchips . | . . . Time . | . . . Total Robot Build Rating . | . . . Part Schematics Acquired 1 | . 1 . Parts Built . | . . . Authchips . | . . . Time . | . . . Total Part Build Rating . | . . . Parts Repaired 1 | . 1 . Time 26 | . 26 . Parts Recycled . | . . . Recycled Matter . | . . . Retrieved Matter . | . . . Retrieved Components 3 | . 3 . Parts Scanalyzed . | . . . Part Schematics Acquired . | . . . Parts Damaged . | . . . Bothacking | -11 -10 -10 ------------ Run | Jun Mat Min Used RIF Installer . | . . . Robots Hacked . | . . . Non-combat . | . . . Combat . | . . . Robot Hacks Applied . | . . . Relay Couplers Released . | . . . Fabnet Peak Effective % . | . . . Robots Rewired . | . . . Allies Hacked . | . . . Hacks Repelled . | . . . Allies | -11 -10 -10 -------- Run | Jun Mat Min Total Allies . | . . . Largest Group . | . . . Highest-Rated Group . | . . . Highest-Rated Ally . | . . . Total Orders . | . . . Ally Attacks . | . . . Total Damage . | . . . Kills . | . . . Allies Corrupted . | . . . Allies Melted . | . . . Intel | -11 -10 -10 ------- Run | Jun Mat Min Robot Analysis Total . | . . . Derelict Logs Recovered 1 | . . 1 Drone Launches . | . . . Drone Recoveries . | . . . Exploration | -11 -10 -10 ------------- Run | Jun Mat Min Turns Passed 2020 | 124 1386 510 Spaces Moved 1089 | 63 722 304 Core 5 | 5 . . Treads 1084 | 58 722 304 Legs . | . . . Wheels . | . . . Hover . | . . . Flight . | . . . Fastest Speed 50 | 50 160 160 Average Speed 159 | 151 160 160 Slowest Speed 160 | 160 160 160 Overloaded Moves . | . . . Propulsion Burnouts . | . . . Robots Hopped . | . . . Cave-ins Triggered . | . . . Exploration Rate (%) 55 | 4 94 67 Regions Visited 2 Branch Regions 1 Pre-discovered Areas . | . . . Known Exits Taken 1 | . 1 . Unknown Exits Taken 1 | 1 . . Scrap Searched . | . . . Spaces Dug 2 | . 2 . Terrain Destroyed 70 | . 47 23 Melee . | . . . Projectile 2 | . 2 . AOE 68 | . 45 23 Terrain Rammed . | . . . Walls Destroyed . | . . . Machines Disabled . | . . . Actions | -11 -10 -10 --------- Run | Jun Mat Min Total 1255 | 79 860 316 Wait 59 | . 59 . Move 1087 | 62 721 304 Hop . | . . . Pick Up 17 | 4 13 . Fast Attach 12 | 7 5 . Attach 3 | . 1 2 Detach 1 | . 1 . Swap 4 | . 3 1 Drop 11 | 1 10 . Fire 60 | 5 46 9 Melee . | . . . Ram . | . . . Kick . | . . . Crush 1 | . 1 . Escape Stasis . | . . . Rewire . | . . . Trap . | . . . Miscellaneous . | . . . Route ------- -11/Junkyard -10/Materials (discovered 4 exits: *Mat x2 / *Min x2) -10/Mines History --------- Turn | Location | Event 31 | -11/Junkyard | Discovered new exit (range 16) 125 | -11/Junkyard | Entered Materials 176 | -10/Materials | Discovered new exit (range 7) 253 | -10/Materials | Identified exit to Mines 307 | -10/Materials | Build established: Mutant 552 | -10/Materials | Discovered new exit (range 16) 1137 | -10/Materials | Repaired Lgt. Armor Plating 1169 | -10/Materials | Core integrity fell below 50% 1381 | -10/Materials | Discovered new exit (range 15) 1421 | -10/Materials | Identified exit to Materials 1511 | -10/Materials | Entered Mines 1513 | -10/Mines | Met a Derelict bent on vengeance 1822 | -10/Mines | Learned Materials terminal intel 1987 | -10/Mines | Assembled infested the area 2018 | -10/Mines | Core integrity fell below 20% 2021 | -10/Mines | Destroyed by D-53 Grenadier with Mini Grenade Launcher Last Messages --------------- 02008_ Destroyed Asb. F-torch. 02008_ as-96074 destroyed. 02008_ as-72589 destroyed. 02010_ as-78469 destroyed. 02010_ as-84212 destroyed. 02010_ Destroyed Asb. Hover Unit. 02010_ as-96765 destroyed. 02010_ as-99818 destroyed. 02011_ X8-W4K(g): "VENGEANCE!" 02011_ The unstable cave ceiling collapses. 02013_ C-30 ARC bursts open, deploying its payload. 02013_ D-53 Grenadier unfolds itself. 02013_ Lgt. Treads destroyed. 02013_ as-10388 destroyed. 02013_ as-85450 destroyed. 02015_ The unstable cave ceiling collapses. 02015_ Lgt. Nuclear Core destroyed. 02015_ Grenade Launcher destroyed. 02017_ X8-W4K(g) destroyed. 02019_ Lgt. Treads destroyed. Map ----- +----------------------------------------------------+ | ?????????????????????????????????????????? | | ?????????????????????????????????????????? | | ?????????????????????????????????????????? | | ?????????????????????????????????????????? | | ?????????????????????????????????????????? | | ?????????????????????????????????????????? | | ?????????????????????????????????????????? | | ????????????????????? ??????????????????? | | ????????????????????# ????????????????#?? | | ????????????????????# ???????????????## | | ?????????????? ???# ??????????????## | | ???????????? ???# #?????????????# | | ???????????? ??# ##????????????# """ | | ????????????? * ### ! ##???????????# """ | | ?????????????? ! ##??????????? ""? | | ??????????????? #??????????? ??? | | ???????????????? #??????????????? | | ???????????????? ##?????????????? | | ???????????????? ? ###???????????? | | ???????????????? ### #???????????? | | ??????????####### # #???????????? | | ????????### # # #????????????? | | ???????## #????????????? | | ??????## #????????????? | | ??????# d #????????????? | | ??????# % d @ #??????????????? | | ???????# ##???????????????? | | ???????# ### ##???????????????? | | ????????????# # ##??????????????? | | ????????????# ## #??????????????? | | ????????????## ###### ##?????????????? | | ?????????????###???## #?????????????? | | ???????????????????# #?????????????? | | ???????????????????# #?????????????? | | ???????????????????# #?????????????? | | ???????????????????# #?????????????? | | ???????????????????# #?????????????? | | ??????????????????## #?####????????? | | ??????????????????# #### #????????? | | ??????????????????# ## #?# #????????? | | ??????????????????# ### #?# #????????? | | ??????????????????# #?# #?# #????????? | | ??????????????????# ### #?## #????????? | | ??????????????????# ## #??# ##???????? | | ??????????????????## ## #??# ##??????? | | ???????????????????# ### #??## #??##### | | ???????????????????# #?# ##### #### | | ???????????????????# #?# ## | | ???????????????????# ### """ | | ???????????????????# ##### """ | +----------------------------------------------------+ Best States ------------- Heat Dissipation 25 Energy Generation 14 Energy Capacity 250 Matter Stores 300 Matter Capacity 300 Sight Range 16 Terrain Scan Density 10 Resistance: KI 20 Resistance: TH 20 Resistance: EX 20 Resistance: EM 20 Resistance: I 20 Resistance: S 20 Resistance: P 20 Evasion (%) 40 Recoil Reduction 2 Offensive Hacking 10 Item Schematics ----------------- Huge Storage Unit | -10/Materials | Hacked Robot Schematics ------------------ None Fabricated ------------ Nothing Alien Tech Used ----------------- None Achievements -------------- None Challenges ------------ None Game ------ Seed DerelictAntimatterGuard Manual? 0 Play Time 00:14:13 Cumulative 190.3 hours Start 2023.03.14 @ 23:17:26 End 2023.03.14 @ 23:29:37 Sessions 1 Manual Loads 0 Difficulty Adventurer Special Mode None Game No. 61 Rogue 0 Adventurer 61 Explorer 0 Win Type - Total 8 Types 4/2/0/2/0/0/0/0/0 Lore% 52 Gallery% 71 Achievement% 61 Wizard Run 0 Options --------- ASCII 0 Keyboard 0 Movement Mouse Keybinds 0 Fullscreen 1 Font 18/SmallcapsGlow Map View 76x50 Tactical HUD 1 Map Filters NONE Filters NONE Steam 1 RUN: 19abc475-7be2-40a1-b7db-990c334726c8